[Event "Late-Titled-Tuesday-Blitz-March-26-2024"]
[Site "Chess.com"]
[Date "2024.03.26"]
[Round "1"]
[White "Der_Balak_3Halak"]
[Black "ProfessorChess101"]
[Result "0-1"]
[WhiteElo "2411"]
[BlackElo "2771"]
[TimeControl "180+1"]
[EndTime "14:06:43 PDT"]
[Termination "ProfessorChess101 won by resignation"]

1. e4 {[%clk 0:02:59.9]} 1... e5 {[%clk 0:02:58.9]} 2. Nf3 {[%clk 0:02:58.3]}
2... Nc6 {[%clk 0:02:59.1]} 3. Bb5 {[%clk 0:02:58.1]} 3... a6 {[%clk 0:02:58.7]}
4. Bxc6 {[%clk 0:02:58.4]} 4... dxc6 {[%clk 0:02:58.5]} 5. O-O {[%clk 0:02:59]}
5... Bg4 {[%clk 0:02:57.8]} 6. h3 {[%clk 0:02:59.6]} 6... Bh5 {[%clk 0:02:57.6]}
7. c3 {[%clk 0:02:56.6]} 7... Nf6 {[%clk 0:02:55.7]} 8. d4 {[%clk 0:02:51]} 8...
exd4 {[%clk 0:02:49.4]} 9. e5 {[%clk 0:02:45.3]} 9... Nd5 {[%clk 0:02:45.5]} 10.
cxd4 {[%clk 0:02:44.1]} 10... Be7 {[%clk 0:02:45.7]} 11. Nc3 {[%clk 0:02:42.1]}
11... O-O {[%clk 0:02:45.2]} 12. Re1 {[%clk 0:02:37]} 12... c5 {[%clk
0:02:44.7]} 13. Be3 {[%clk 0:02:17.6]} 13... Nxe3 {[%clk 0:02:38.7]} 14. fxe3
{[%clk 0:02:11.6]} 14... c6 {[%clk 0:02:29.8]} 15. d5 {[%clk 0:01:54.3]} 15...
cxd5 {[%clk 0:02:27.7]} 16. Qxd5 {[%clk 0:01:45.7]} 16... Qc8 {[%clk 0:02:18.7]}
17. Rad1 {[%clk 0:01:42]} 17... Rd8 {[%clk 0:02:12]} 18. Qe4 {[%clk 0:01:40.8]}
18... Bf8 {[%clk 0:01:59.1]} 19. Nd5 {[%clk 0:01:36.1]} 19... Qc6 {[%clk
0:01:56.5]} 20. Nc3 {[%clk 0:00:52.2]} 20... Qxe4 {[%clk 0:01:47.9]} 21. Nxe4
{[%clk 0:00:53.1]} 21... Be7 {[%clk 0:01:44.3]} 22. Nd6 {[%clk 0:00:50]} 22...
b5 {[%clk 0:01:38.2]} 23. Nf5 {[%clk 0:00:45.9]} 23... Bf8 {[%clk 0:01:37.8]}
24. Kf2 {[%clk 0:00:44.3]} 24... Re8 {[%clk 0:01:26.9]} 25. g4 {[%clk
0:00:43.2]} 25... Bg6 {[%clk 0:01:26.5]} 26. Rd7 {[%clk 0:00:41.3]} 26... c4
{[%clk 0:01:18]} 27. a3 {[%clk 0:00:37.3]} 27... a5 {[%clk 0:01:16.9]} 28. h4
{[%clk 0:00:22.5]} 28... h5 {[%clk 0:01:13.4]} 29. e4 {[%clk 0:00:17.6]} 29...
hxg4 {[%clk 0:01:11.7]} 30. Nh2 {[%clk 0:00:18.2]} 30... Rxe5 {[%clk 0:00:56.3]}
31. Nxg4 {[%clk 0:00:17.8]} 31... Bxf5 {[%clk 0:00:54.5]} 32. Nxe5 {[%clk
0:00:17.6]} 32... Bxd7 {[%clk 0:00:54.5]} 33. Nxd7 {[%clk 0:00:18.5]} 33... Be7
{[%clk 0:00:51.9]} 34. h5 {[%clk 0:00:16.9]} 34... Bh4+ {[%clk 0:00:51.2]} 35.
Ke2 {[%clk 0:00:16.7]} 35... Bxe1 {[%clk 0:00:52.1]} 36. Kxe1 {[%clk 0:00:17.6]}
36... Re8 {[%clk 0:00:43.3]} 37. e5 {[%clk 0:00:16.9]} 37... Re7 {[%clk
0:00:39]} 0-1

[Event "Late-Titled-Tuesday-Blitz-March-26-2024"]
[Site "Chess.com"]
[Date "2024.03.26"]
[Round "1"]
[White "N_I_Chess"]
[Black "jinbojinbo"]
[Result "0-1"]
[WhiteElo "2314"]
[BlackElo "2637"]
[TimeControl "180+1"]
[EndTime "14:06:43 PDT"]
[Termination "jinbojinbo won on time"]

1. d4 {[%clk 0:02:57.9]} 1... Nf6 {[%clk 0:02:59.6]} 2. c4 {[%clk 0:02:57.6]}
2... c5 {[%clk 0:02:59.3]} 3. d5 {[%clk 0:02:57.5]} 3... b5 {[%clk 0:02:59.6]}
4. Nd2 {[%clk 0:02:56.9]} 4... g6 {[%clk 0:02:53]} 5. b3 {[%clk 0:02:56]} 5...
Bg7 {[%clk 0:02:52.5]} 6. Bb2 {[%clk 0:02:56]} 6... O-O {[%clk 0:02:52.2]} 7. e4
{[%clk 0:02:52.4]} 7... bxc4 {[%clk 0:02:50.1]} 8. Bxc4 {[%clk 0:02:49.1]} 8...
d6 {[%clk 0:02:47.8]} 9. Qc2 {[%clk 0:02:48.6]} 9... Re8 {[%clk 0:02:43.4]} 10.
Ne2 {[%clk 0:02:47.7]} 10... e6 {[%clk 0:02:43.3]} 11. dxe6 {[%clk 0:02:46.2]}
11... Bxe6 {[%clk 0:02:43.8]} 12. Bxe6 {[%clk 0:02:36.5]} 12... Rxe6 {[%clk
0:02:44.7]} 13. f3 {[%clk 0:02:35.8]} 13... Nc6 {[%clk 0:02:39]} 14. O-O {[%clk
0:02:34.2]} 14... Nb4 {[%clk 0:02:39.2]} 15. Qc4 {[%clk 0:02:31.8]} 15... d5
{[%clk 0:02:38.2]} 16. exd5 {[%clk 0:02:31.4]} 16... Qxd5 {[%clk 0:02:23.9]} 17.
Nf4 {[%clk 0:00:48.3]} 17... Qxd2 {[%clk 0:02:06.1]} 18. Nxe6 {[%clk 0:00:15.3]}
18... Qxb2 {[%clk 0:02:05.1]} 19. Nxc5 {[%clk 0:00:15]} 19... Nbd5 {[%clk
0:02:02.1]} 20. Nd3 {[%clk 0:00:11.3]} 20... Qa3 {[%clk 0:01:56.1]} 21. Rfe1
{[%clk 0:00:07.7]} 21... h5 {[%clk 0:01:54.7]} 22. Rac1 {[%clk 0:00:06.6]} 22...
Qxa2 {[%clk 0:01:49.6]} 23. Rc2 {[%clk 0:00:06.8]} 23... Qa5 {[%clk 0:01:48.5]}
24. Rce2 {[%clk 0:00:07.4]} 24... Kh7 {[%clk 0:01:43.1]} 25. b4 {[%clk
0:00:07.2]} 25... Qb6+ {[%clk 0:01:42.7]} 26. Kh1 {[%clk 0:00:06.6]} 26... Rd8
{[%clk 0:01:40]} 27. Ne5 {[%clk 0:00:06.6]} 27... Qb7 {[%clk 0:01:11.3]} 28. Ra2
{[%clk 0:00:04.1]} 28... Rc8 {[%clk 0:01:09.4]} 29. Qd3 {[%clk 0:00:03.4]} 29...
Nxb4 {[%clk 0:01:08.8]} 30. Qb3 {[%clk 0:00:02.8]} 30... Rc7 {[%clk 0:01:02.4]}
31. Rb1 {[%clk 0:00:01.6]} 31... Nfd5 {[%clk 0:01:01.5]} 32. Ra4 {[%clk
0:00:01.8]} 32... Bxe5 {[%clk 0:01:01.1]} 33. f4 {[%clk 0:00:02]} 33... Bxf4
{[%clk 0:01:00]} 34. Qf3 {[%clk 0:00:02.2]} 34... Qb5 {[%clk 0:00:55.8]} 0-1

[Event "Late-Titled-Tuesday-Blitz-March-26-2024"]
[Site "Chess.com"]
[Date "2024.03.26"]
[Round "1"]
[White "CURRUTACO59"]
[Black "Thjop"]
[Result "0-1"]
[WhiteElo "2272"]
[BlackElo "2611"]
[TimeControl "180+1"]
[EndTime "14:06:45 PDT"]
[Termination "Thjop won on time"]

1. Nf3 {[%clk 0:02:58.6]} 1... d5 {[%clk 0:02:59.3]} 2. d4 {[%clk 0:02:58.1]}
2... Nf6 {[%clk 0:02:59.4]} 3. c4 {[%clk 0:02:58.3]} 3... c6 {[%clk 0:02:59.7]}
4. e3 {[%clk 0:02:57.7]} 4... Bf5 {[%clk 0:02:59.2]} 5. Nc3 {[%clk 0:02:57.5]}
5... e6 {[%clk 0:02:59.2]} 6. Bd3 {[%clk 0:02:57.4]} 6... Bxd3 {[%clk
0:02:58.8]} 7. Qxd3 {[%clk 0:02:58.3]} 7... Nbd7 {[%clk 0:02:58.8]} 8. O-O
{[%clk 0:02:57.8]} 8... Bd6 {[%clk 0:02:58.4]} 9. e4 {[%clk 0:02:57.8]} 9...
dxe4 {[%clk 0:02:58.3]} 10. Nxe4 {[%clk 0:02:58.7]} 10... Nxe4 {[%clk
0:02:58.8]} 11. Qxe4 {[%clk 0:02:59.6]} 11... O-O {[%clk 0:02:58.6]} 12. Bg5
{[%clk 0:02:58.1]} 12... Qc7 {[%clk 0:02:57.1]} 13. Rad1 {[%clk 0:02:53.5]}
13... Rfe8 {[%clk 0:02:49.9]} 14. c5 {[%clk 0:02:47.8]} 14... Bf8 {[%clk
0:02:44.9]} 15. Bf4 {[%clk 0:02:43.4]} 15... Qa5 {[%clk 0:02:40.9]} 16. a3
{[%clk 0:02:40]} 16... Qa4 {[%clk 0:02:39.2]} 17. Ng5 {[%clk 0:02:32.1]} 17...
Nf6 {[%clk 0:02:35.8]} 18. Qf3 {[%clk 0:02:31.8]} 18... h6 {[%clk 0:02:34.4]}
19. Nh3 {[%clk 0:02:19.2]} 19... Qc4 {[%clk 0:02:33]} 20. Be5 {[%clk 0:02:16.4]}
20... Qd5 {[%clk 0:02:27.7]} 21. Qe2 {[%clk 0:02:10.9]} 21... Nd7 {[%clk
0:02:25.4]} 22. Nf4 {[%clk 0:02:09.4]} 22... Qb3 {[%clk 0:02:22.7]} 23. Nd3
{[%clk 0:01:47]} 23... Nxe5 {[%clk 0:02:17]} 24. Nxe5 {[%clk 0:01:46.8]} 24...
Be7 {[%clk 0:02:12.9]} 25. Rd3 {[%clk 0:01:45.2]} 25... Qd5 {[%clk 0:02:10.1]}
26. Rf3 {[%clk 0:01:37.9]} 26... Bf6 {[%clk 0:02:08.3]} 27. Rd1 {[%clk
0:01:23.2]} 27... Rad8 {[%clk 0:01:50.1]} 28. Rfd3 {[%clk 0:00:38.2]} 28... Bxe5
{[%clk 0:01:28.4]} 29. dxe5 {[%clk 0:00:35.9]} 29... Qc4 {[%clk 0:01:28.4]} 30.
Rxd8 {[%clk 0:00:19.1]} 30... Qxe2 {[%clk 0:01:28.4]} 31. Rxe8+ {[%clk
0:00:19.5]} 31... Kh7 {[%clk 0:01:28.9]} 32. Rf1 {[%clk 0:00:16.2]} 32... Qxb2
{[%clk 0:01:25.8]} 33. Re7 {[%clk 0:00:15.6]} 33... Kg6 {[%clk 0:01:23.2]} 34.
a4 {[%clk 0:00:13.6]} 34... Qxe5 {[%clk 0:01:12]} 35. Rxb7 {[%clk 0:00:12.2]}
35... Qxc5 {[%clk 0:01:12.5]} 36. Rd1 {[%clk 0:00:09.3]} 36... Qc2 {[%clk
0:01:10.2]} 37. Rbd7 {[%clk 0:00:03.1]} 37... Qxa4 {[%clk 0:01:06.4]} 38. g3
{[%clk 0:00:04]} 38... c5 {[%clk 0:01:03.4]} 39. Re7 {[%clk 0:00:02.8]} 39... c4
{[%clk 0:00:57]} 40. Rdd7 {[%clk 0:00:01.8]} 40... Qa1+ {[%clk 0:00:57]} 41. Kg2
{[%clk 0:00:01.4]} 41... Qf6 {[%clk 0:00:57.5]} 0-1

[Event "Late-Titled-Tuesday-Blitz-March-26-2024"]
[Site "Chess.com"]
[Date "2024.03.26"]
[Round "1"]
[White "steepedgames"]
[Black "FabianoCaruana"]
[Result "0-1"]
[WhiteElo "2527"]
[BlackElo "3097"]
[TimeControl "180+1"]
[EndTime "14:06:48 PDT"]
[Termination "FabianoCaruana won on time"]

1. d4 {[%clk 0:02:57.2]} 1... Nf6 {[%clk 0:02:59.7]} 2. Bg5 {[%clk 0:02:57.7]}
2... Nc6 {[%clk 0:02:58.7]} 3. c4 {[%clk 0:02:56]} 3... Ne4 {[%clk 0:02:53.4]}
4. Bf4 {[%clk 0:02:54.9]} 4... e5 {[%clk 0:02:52.5]} 5. dxe5 {[%clk 0:02:51.2]}
5... Bc5 {[%clk 0:02:44.3]} 6. Qd5 {[%clk 0:02:28.1]} 6... Bxf2+ {[%clk
0:02:29.5]} 7. Kd1 {[%clk 0:02:27.8]} 7... f5 {[%clk 0:02:28.6]} 8. Nh3 {[%clk
0:02:05.6]} 8... Bd4 {[%clk 0:02:17.9]} 9. Nd2 {[%clk 0:01:53.4]} 9... Qe7
{[%clk 0:02:02.4]} 10. Nxe4 {[%clk 0:01:49.2]} 10... fxe4 {[%clk 0:02:03.3]} 11.
e3 {[%clk 0:01:00.2]} 11... Bxb2 {[%clk 0:02:00.6]} 12. Rb1 {[%clk 0:00:59.7]}
12... Bxe5 {[%clk 0:02:00.7]} 13. Be2 {[%clk 0:00:56.6]} 13... d6 {[%clk
0:01:58.8]} 14. Ng5 {[%clk 0:00:37.9]} 14... Bf6 {[%clk 0:01:40]} 15. Rf1 {[%clk
0:00:28.7]} 15... Bxg5 {[%clk 0:01:12.5]} 16. Bxg5 {[%clk 0:00:29.6]} 16... Qe6
{[%clk 0:01:12.8]} 17. Qxe6+ {[%clk 0:00:22.4]} 17... Bxe6 {[%clk 0:01:13.7]}
18. Rxb7 {[%clk 0:00:22.6]} 18... Kd7 {[%clk 0:01:11.7]} 19. Kd2 {[%clk
0:00:19.3]} 19... Rhb8 {[%clk 0:01:07.2]} 20. Rfb1 {[%clk 0:00:19.2]} 20... Rxb7
{[%clk 0:01:07.4]} 21. Rxb7 {[%clk 0:00:20.1]} 21... Na5 {[%clk 0:00:59]} 22.
Rb4 {[%clk 0:00:19.2]} 22... c5 {[%clk 0:00:58]} 23. Rb5 {[%clk 0:00:15.9]}
23... Nxc4+ {[%clk 0:00:55]} 24. Bxc4 {[%clk 0:00:16.1]} 24... Bxc4 {[%clk
0:00:55.9]} 25. Rb7+ {[%clk 0:00:16.2]} 25... Kc6 {[%clk 0:00:56.4]} 26. Rxg7
{[%clk 0:00:16.1]} 26... Rb8 {[%clk 0:00:45.6]} 27. Rxh7 {[%clk 0:00:11.7]}
27... Rb2+ {[%clk 0:00:37]} 28. Kc3 {[%clk 0:00:12.1]} 28... Rxg2 {[%clk
0:00:37.5]} 29. Bf4 {[%clk 0:00:09.6]} 29... d5 {[%clk 0:00:26.4]} 30. Rxa7
{[%clk 0:00:04.6]} 30... Bd3 {[%clk 0:00:26.7]} 0-1

[Event "Late-Titled-Tuesday-Blitz-March-26-2024"]
[Site "Chess.com"]
[Date "2024.03.26"]
[Round "1"]
[White "TheMagician"]
[Black "OriTaichman"]
[Result "0-1"]
[WhiteElo "2283"]
[BlackElo "2616"]
[TimeControl "180+1"]
[EndTime "14:06:50 PDT"]
[Termination "OriTaichman won on time"]

1. e4 {[%clk 0:02:59.7]} 1... c5 {[%clk 0:02:52]} 2. Nf3 {[%clk 0:02:58]} 2...
Nc6 {[%clk 0:02:52.1]} 3. Bb5 {[%clk 0:02:53.3]} 3... d6 {[%clk 0:02:51.4]} 4.
d4 {[%clk 0:02:52.6]} 4... cxd4 {[%clk 0:02:51.1]} 5. Nxd4 {[%clk 0:02:52.7]}
5... Bd7 {[%clk 0:02:51.4]} 6. O-O {[%clk 0:02:51.4]} 6... Nf6 {[%clk
0:02:49.4]} 7. Re1 {[%clk 0:02:50.4]} 7... g6 {[%clk 0:02:40]} 8. c4 {[%clk
0:02:48.3]} 8... Bg7 {[%clk 0:02:38.4]} 9. Bxc6 {[%clk 0:02:45.6]} 9... bxc6
{[%clk 0:02:37.9]} 10. Nc3 {[%clk 0:02:45.3]} 10... Rb8 {[%clk 0:02:33.6]} 11.
b3 {[%clk 0:02:44.2]} 11... c5 {[%clk 0:02:31.6]} 12. Nc2 {[%clk 0:02:44]} 12...
Ng4 {[%clk 0:02:20.9]} 13. Bd2 {[%clk 0:02:33.7]} 13... Ne5 {[%clk 0:02:14.5]}
14. Qe2 {[%clk 0:02:29.3]} 14... Nc6 {[%clk 0:02:13.2]} 15. Rad1 {[%clk
0:02:24.4]} 15... Nd4 {[%clk 0:02:06.2]} 16. Qd3 {[%clk 0:02:21]} 16... e6
{[%clk 0:01:57.2]} 17. Be3 {[%clk 0:02:09.9]} 17... e5 {[%clk 0:01:54]} 18. Nd5
{[%clk 0:02:08]} 18... Be6 {[%clk 0:01:48]} 19. Bd2 {[%clk 0:01:58.4]} 19... f5
{[%clk 0:01:41.3]} 20. Nxd4 {[%clk 0:01:49.1]} 20... cxd4 {[%clk 0:01:38.5]} 21.
exf5 {[%clk 0:01:46.8]} 21... gxf5 {[%clk 0:01:36.9]} 22. Qh3 {[%clk 0:01:33.3]}
22... O-O {[%clk 0:01:33.7]} 23. Nf4 {[%clk 0:01:16.5]} 23... Qd7 {[%clk
0:01:25.9]} 24. Nh5 {[%clk 0:01:08.1]} 24... f4 {[%clk 0:01:19.1]} 25. Qd3
{[%clk 0:01:05]} 25... Bf5 {[%clk 0:01:15.6]} 26. Qf3 {[%clk 0:00:50.8]} 26...
Kh8 {[%clk 0:01:03.4]} 27. h3 {[%clk 0:00:40.7]} 27... Rg8 {[%clk 0:00:53.2]}
28. c5 {[%clk 0:00:21.6]} 28... dxc5 {[%clk 0:00:46.6]} 29. Rc1 {[%clk
0:00:08.8]} 29... e4 {[%clk 0:00:34.4]} 30. Qxf4 {[%clk 0:00:03.3]} 30... e3
{[%clk 0:00:34.8]} 0-1

[Event "Late-Titled-Tuesday-Blitz-March-26-2024"]
[Site "Chess.com"]
[Date "2024.03.26"]
[Round "1"]
[White "Firouzja2003"]
[Black "colegiodemadrid"]
[Result "1-0"]
[WhiteElo "3090"]
[BlackElo "2525"]
[TimeControl "180+1"]
[EndTime "14:06:51 PDT"]
[Termination "Firouzja2003 won by resignation"]

1. e4 {[%clk 0:02:58.3]} 1... e5 {[%clk 0:02:58.8]} 2. d4 {[%clk 0:02:58]} 2...
exd4 {[%clk 0:02:58.4]} 3. Qxd4 {[%clk 0:02:58.6]} 3... Nc6 {[%clk 0:02:58.3]}
4. Qc4 {[%clk 0:02:59]} 4... Nf6 {[%clk 0:02:54.7]} 5. Nc3 {[%clk 0:02:59]} 5...
Bb4 {[%clk 0:02:46.3]} 6. Bd2 {[%clk 0:02:59]} 6... O-O {[%clk 0:02:43.9]} 7.
O-O-O {[%clk 0:02:58.8]} 7... Re8 {[%clk 0:02:39.1]} 8. f3 {[%clk 0:02:58.7]}
8... d6 {[%clk 0:02:35]} 9. Qe2 {[%clk 0:02:57.3]} 9... d5 {[%clk 0:02:29.8]}
10. a3 {[%clk 0:02:56.2]} 10... Be7 {[%clk 0:02:22.7]} 11. Bf4 {[%clk 0:02:50]}
11... d4 {[%clk 0:02:15.4]} 12. Nb5 {[%clk 0:02:49.5]} 12... Bd6 {[%clk
0:02:07.1]} 13. Bxd6 {[%clk 0:02:20.9]} 13... cxd6 {[%clk 0:02:06.7]} 14. Qf2
{[%clk 0:02:19.5]} 14... d5 {[%clk 0:02:00.3]} 15. Nxd4 {[%clk 0:02:18.2]} 15...
Qb6 {[%clk 0:01:59.5]} 16. e5 {[%clk 0:01:32.5]} 16... Nxe5 {[%clk 0:01:37.2]}
17. Qd2 {[%clk 0:01:18.7]} 17... Bd7 {[%clk 0:01:34.9]} 18. Qb4 {[%clk
0:01:14.6]} 18... Qxb4 {[%clk 0:01:22.1]} 19. axb4 {[%clk 0:01:14.4]} 19... Rac8
{[%clk 0:01:21.8]} 20. Nge2 {[%clk 0:01:12]} 20... Nc4 {[%clk 0:01:20]} 21. Nc3
{[%clk 0:01:12.1]} 21... Ne3 {[%clk 0:01:19.4]} 22. Rd2 {[%clk 0:01:12]} 22...
Nc4 {[%clk 0:01:08.6]} 23. Bxc4 {[%clk 0:01:10.3]} 23... Rxc4 {[%clk 0:01:09.5]}
24. b5 {[%clk 0:01:10.6]} 24... g6 {[%clk 0:01:04.1]} 25. Rd3 {[%clk 0:01:08.8]}
25... Be6 {[%clk 0:01:02.7]} 26. b3 {[%clk 0:01:08.5]} 26... Rc7 {[%clk
0:00:58.7]} 27. Kb2 {[%clk 0:01:08.7]} 27... Kg7 {[%clk 0:00:56.9]} 28. Ra1
{[%clk 0:01:08]} 28... b6 {[%clk 0:00:55.3]} 29. Na2 {[%clk 0:01:02.3]} 29...
Nd7 {[%clk 0:00:50]} 30. Nb4 {[%clk 0:01:00.1]} 30... Nc5 {[%clk 0:00:47]} 31.
Re3 {[%clk 0:01:00.8]} 31... Kf6 {[%clk 0:00:36.9]} 32. Nxd5+ {[%clk 0:00:59.3]}
32... Bxd5 {[%clk 0:00:30.4]} 33. Rxe8 {[%clk 0:01:00.2]} 33... h5 {[%clk
0:00:27.1]} 34. c4 {[%clk 0:00:59.5]} 34... Be6 {[%clk 0:00:25.4]} 35. Kc3
{[%clk 0:00:59.7]} 35... h4 {[%clk 0:00:24.4]} 36. b4 {[%clk 0:00:52.7]} 36...
Nd7 {[%clk 0:00:21.6]} 37. Nc6 {[%clk 0:00:52.8]} 37... a5 {[%clk 0:00:17.4]}
38. bxa6 {[%clk 0:00:49.4]} 38... Rxc6 {[%clk 0:00:16.5]} 39. Rxe6+ {[%clk
0:00:50.2]} 39... Rxe6 {[%clk 0:00:14.4]} 40. a7 {[%clk 0:00:51.1]} 40... Re3+
{[%clk 0:00:12.6]} 41. Kd4 {[%clk 0:00:51.4]} 41... Re8 {[%clk 0:00:10.9]} 42.
a8=Q {[%clk 0:00:51.6]} 1-0

[Event "Late-Titled-Tuesday-Blitz-March-26-2024"]
[Site "Chess.com"]
[Date "2024.03.26"]
[Round "1"]
[White "SuperJesus88"]
[Black "vladislavkovalev"]
[Result "0-1"]
[WhiteElo "2464"]
[BlackElo "2871"]
[TimeControl "180+1"]
[EndTime "14:06:52 PDT"]
[Termination "vladislavkovalev won by resignation"]

1. e4 {[%clk 0:03:00.9]} 1... e5 {[%clk 0:02:58.8]} 2. Nf3 {[%clk 0:03:00.8]}
2... Nc6 {[%clk 0:02:58.9]} 3. Bb5 {[%clk 0:03:00.5]} 3... a6 {[%clk 0:02:59.1]}
4. Bxc6 {[%clk 0:03:00.7]} 4... dxc6 {[%clk 0:03:00]} 5. d4 {[%clk 0:03:00.6]}
5... exd4 {[%clk 0:03:00.2]} 6. Qxd4 {[%clk 0:03:01.4]} 6... Qxd4 {[%clk
0:03:00.7]} 7. Nxd4 {[%clk 0:03:00.9]} 7... c5 {[%clk 0:03:00.4]} 8. Ne2 {[%clk
0:03:00]} 8... Bd7 {[%clk 0:02:57.9]} 9. Nbc3 {[%clk 0:02:59.8]} 9... O-O-O
{[%clk 0:02:58.6]} 10. Be3 {[%clk 0:02:58.6]} 10... Bc6 {[%clk 0:02:57]} 11. f3
{[%clk 0:02:58.5]} 11... b6 {[%clk 0:02:56.3]} 12. Kf2 {[%clk 0:02:58.5]} 12...
Bd6 {[%clk 0:02:55.5]} 13. Rad1 {[%clk 0:02:52.9]} 13... Ne7 {[%clk 0:02:55.6]}
14. Bf4 {[%clk 0:02:53.2]} 14... Ng6 {[%clk 0:02:29.5]} 15. Bxd6 {[%clk
0:02:52.7]} 15... Rxd6 {[%clk 0:02:30.4]} 16. Rxd6 {[%clk 0:02:51]} 16... cxd6
{[%clk 0:02:31.3]} 17. Rd1 {[%clk 0:02:51]} 17... Rd8 {[%clk 0:02:30.8]} 18. Nd5
{[%clk 0:02:48.1]} 18... Bxd5 {[%clk 0:02:30.7]} 19. Rxd5 {[%clk 0:02:48.9]}
19... Kc7 {[%clk 0:02:29.8]} 20. f4 {[%clk 0:02:46.5]} 20... Ne7 {[%clk
0:02:29.6]} 21. Rd3 {[%clk 0:02:44.3]} 21... d5 {[%clk 0:02:29]} 22. exd5 {[%clk
0:02:41.8]} 22... Rxd5 {[%clk 0:02:27.2]} 23. Rxd5 {[%clk 0:02:40.1]} 23... Nxd5
{[%clk 0:02:28.1]} 24. a3 {[%clk 0:02:38.6]} 24... b5 {[%clk 0:02:27.7]} 25. g3
{[%clk 0:02:38.6]} 25... Kd6 {[%clk 0:02:26.6]} 26. Nc1 {[%clk 0:02:34.9]} 26...
a5 {[%clk 0:02:25.2]} 27. Ke2 {[%clk 0:02:33.6]} 27... a4 {[%clk 0:02:25.7]} 28.
Kd3 {[%clk 0:02:20.5]} 28... h5 {[%clk 0:02:23]} 29. Ne2 {[%clk 0:02:18.8]}
29... Nb6 {[%clk 0:02:20.3]} 30. Nc3 {[%clk 0:02:08.6]} 30... Kc6 {[%clk
0:02:09.9]} 31. b3 {[%clk 0:02:08.2]} 31... axb3 {[%clk 0:02:00.8]} 32. cxb3
{[%clk 0:02:08]} 32... c4+ {[%clk 0:01:58.4]} 33. Kc2 {[%clk 0:02:04.8]} 33...
Kc5 {[%clk 0:01:34.3]} 34. Ne4+ {[%clk 0:02:04.3]} 34... Kd4 {[%clk 0:01:31.2]}
35. Nd6 {[%clk 0:02:02.1]} 35... cxb3+ {[%clk 0:01:15.5]} 36. Kxb3 {[%clk
0:02:01.1]} 36... Ke3 {[%clk 0:01:16]} 37. Nxf7 {[%clk 0:01:54.5]} 37... Kf3
{[%clk 0:01:14.3]} 38. Ng5+ {[%clk 0:01:53.6]} 38... Kg2 {[%clk 0:01:14.1]} 39.
Ne6 {[%clk 0:01:48.4]} 39... g6 {[%clk 0:01:13.7]} 40. Nf8 {[%clk 0:01:46.2]}
40... Kxh2 {[%clk 0:01:13.2]} 41. Nxg6 {[%clk 0:01:46.7]} 41... Kxg3 {[%clk
0:01:13.8]} 42. f5 {[%clk 0:01:47.5]} 42... Nd5 {[%clk 0:01:14.4]} 43. f6 {[%clk
0:01:44.4]} 43... Nxf6 {[%clk 0:01:13.4]} 44. Kb4 {[%clk 0:01:44.8]} 44... Nd5+
{[%clk 0:00:53.7]} 45. Kxb5 {[%clk 0:01:43.9]} 45... Nf4 {[%clk 0:00:51]} 46.
Ne7 {[%clk 0:01:36.3]} 46... Kg4 {[%clk 0:00:51.2]} 47. Nc6 {[%clk 0:01:28.5]}
47... h4 {[%clk 0:00:51]} 48. Ne5+ {[%clk 0:01:29]} 48... Kg3 {[%clk 0:00:50.6]}
49. a4 {[%clk 0:01:04.8]} 49... h3 {[%clk 0:00:50.6]} 50. Nf3 {[%clk 0:01:05]}
50... Kxf3 {[%clk 0:00:48.3]} 51. a5 {[%clk 0:01:05.9]} 51... h2 {[%clk
0:00:37.4]} 52. a6 {[%clk 0:01:05.9]} 52... h1=Q {[%clk 0:00:37.1]} 0-1

[Event "Late-Titled-Tuesday-Blitz-March-26-2024"]
[Site "Chess.com"]
[Date "2024.03.26"]
[Round "1"]
[White "PepeCuenca"]
[Black "Dontmesswithme_2"]
[Result "1/2-1/2"]
[WhiteElo "2728"]
[BlackElo "2408"]
[TimeControl "180+1"]
[EndTime "14:06:54 PDT"]
[Termination "Game drawn by repetition"]

1. d4 {[%clk 0:03:00.9]} 1... d5 {[%clk 0:02:58.8]} 2. Bf4 {[%clk 0:03:01.1]}
2... Nf6 {[%clk 0:02:58.4]} 3. e3 {[%clk 0:03:01.5]} 3... c5 {[%clk 0:02:58.2]}
4. dxc5 {[%clk 0:03:02.4]} 4... Nc6 {[%clk 0:02:57.4]} 5. Bb5 {[%clk 0:03:02.1]}
5... e6 {[%clk 0:02:45.7]} 6. b4 {[%clk 0:03:01.8]} 6... a5 {[%clk 0:02:44]} 7.
c3 {[%clk 0:03:02.2]} 7... Bd7 {[%clk 0:02:42.5]} 8. Qb3 {[%clk 0:03:00.9]} 8...
Ne4 {[%clk 0:01:52.7]} 9. Ne2 {[%clk 0:02:35.3]} 9... axb4 {[%clk 0:01:41.7]}
10. cxb4 {[%clk 0:02:35.2]} 10... b6 {[%clk 0:01:41.3]} 11. f3 {[%clk
0:02:27.8]} 11... bxc5 {[%clk 0:01:27]} 12. fxe4 {[%clk 0:02:18.7]} 12... c4
{[%clk 0:01:24.2]} 13. Qb2 {[%clk 0:02:07.2]} 13... Nxb4 {[%clk 0:01:20.9]} 14.
Bxd7+ {[%clk 0:02:03.9]} 14... Qxd7 {[%clk 0:01:21.8]} 15. O-O {[%clk
0:02:01.4]} 15... Nd3 {[%clk 0:01:20.2]} 16. Qc3 {[%clk 0:01:49.8]} 16... e5
{[%clk 0:01:11.2]} 17. Bg3 {[%clk 0:01:25.2]} 17... Bb4 {[%clk 0:01:10.9]} 18.
Qc2 {[%clk 0:01:21.7]} 18... Qa7 {[%clk 0:01:10.9]} 19. Nbc3 {[%clk 0:01:03.5]}
19... dxe4 {[%clk 0:00:45.5]} 20. Nd5 {[%clk 0:00:50]} 20... Qc5 {[%clk
0:00:42.5]} 21. Nxb4 {[%clk 0:00:39.8]} 21... Qxb4 {[%clk 0:00:42]} 22. Bxe5
{[%clk 0:00:33.1]} 22... Nxe5 {[%clk 0:00:35.2]} 23. Qxe4 {[%clk 0:00:32.8]}
23... Qa5 {[%clk 0:00:31.6]} 24. Rf5 {[%clk 0:00:14.1]} 24... f6 {[%clk
0:00:31.6]} 25. Rxe5+ {[%clk 0:00:08]} 25... fxe5 {[%clk 0:00:29.6]} 26. Qc6+
{[%clk 0:00:08.7]} 26... Ke7 {[%clk 0:00:27.8]} 27. Qb7+ {[%clk 0:00:08.8]}
27... Ke6 {[%clk 0:00:25.6]} 28. Qc6+ {[%clk 0:00:06.9]} 28... Ke7 {[%clk
0:00:26.2]} 29. Qb7+ {[%clk 0:00:07.2]} 29... Ke6 {[%clk 0:00:24.1]} 30. Qc6+
{[%clk 0:00:03.3]} 30... Ke7 {[%clk 0:00:19.3]} 1/2-1/2